bitfinex-derivatives/quotes_ETHF0:USTF0_20250620
["timestamp","ask_amount","ask_price","bid_price","bid_amount"]
[1750445083667,15.41182324,2426.5,2425.9,3.80052]
[1750445083873,0.82424,2426.3,2426.1,0.82429]
[1750445084467,1.8544,2426.3,2426.1,0.82429]
[1750445084668,1.8544,2426.3,2426.0,0.82431]
[1750445084968,0.82428,2426.2,2425.9,1.7396]
[1750445085157,0.82428,2426.2,2426.0,0.82431]
[1750445085357,1.8544,2426.3,2426.1,0.82429]
[1750445085358,2.67864,2426.3,2426.1,0.82429]
[1750445085557,1.8544,2426.3,2426.1,0.82429]
[1750445085763,1.8544,2426.3,2426.2,0.82427]
[1750445087161,1.8544,2426.3,2425.9,3.80053]
[1750445087360,28.4964,2426.3,2426.2,0.82427]
[1750445087666,29.32064,2426.3,2426.1,0.82429]
[1750445087867,0.82427,2426.2,2426.0,0.82431]
[1750445088170,26.642,2426.3,2426.2,0.82425]
[1750445088564,26.642,2426.3,2426.2,0.82427]
[1750445091964,0.82428,2426.2,2425.7,2.06105]
[1750445092166,10.13172324,2426.1,2425.9,0.82434]
[1750445092366,1.7949,2426.0,2425.9,0.82434]
[1750445092669,1.7949,2426.0,2425.8,0.82439]
[1750445092670,2.61926,2426.0,2425.8,0.82439]
[1750445092865,2.61926,2426.0,2425.5,3.75205]
[1750445092866,3.2078,2425.9,2425.5,3.75205]
[1750445093067,1.768,2426.0,2425.9,0.82437]
[1750445093361,3.2078,2426.2,2426.1,0.8243]
[1750445093568,28.4048,2426.5,2426.4,0.8242]
[1750445093768,29.63313989,2426.5,2426.4,0.8242]
[1750445094070,32.18030989,2426.5,2426.3,0.82421]
[1750445094375,30.1278,2426.5,2426.3,0.82421]
[1750445094574,30.95197,2426.5,2426.3,0.82421]
[1750445094969,0.8242,2426.4,2426.3,0.82421]
[1750445095265,13.09406477,2426.4,2426.0,5.0168]
[1750445095469,13.33952324,2426.1,2425.7,3.87009]
[1750445095672,13.33952324,2426.1,2426.0,0.82434]
[1750445096077,15.07552324,2426.1,2426.0,0.82434]
[1750445096671,15.07552324,2426.1,2425.9,0.82435]
[1750445096881,1.23979698,2426.0,2425.7,0.82444]
[1750445097070,10.13172324,2425.8,2425.7,0.82444]
[1750445097265,11.37152022,2425.8,2425.6,0.82445]
[1750445097469,1.736,2425.7,2425.6,0.82445]
[1750445101581,2.06119,2425.6,2425.0,3.2078]
[1750445101776,13.33952324,2425.1,2424.6,5.0293]
[1750445102082,29.8188,2425.1,2425.0,0.82468]
[1750445102471,1.7413,2425.3,2425.2,0.82461]
[1750445102676,26.608,2425.3,2425.2,0.82461]
[1750445103584,0.82452,2425.5,2425.2,0.82461]
[1750445103882,26.608,2425.4,2425.3,0.82458]
[1750445104280,28.4057,2425.4,2425.3,0.82458]
[1750445104482,4.9908,2425.6,2425.5,0.82451]
[1750445104673,26.607,2425.8,2425.7,0.82444]
[1750445104872,38.7125,2426.0,2425.9,0.82437]
[1750445105184,26.606,2426.2,2426.1,0.8243]
[1750445105388,1.8089,2426.3,2426.2,0.82427]
[1750445105675,1.8089,2426.3,2425.6,7.62677]
[1750445105676,5.26722201,2426.4,2425.8,10.3078]
[1750445105881,5.26722201,2426.2,2426.1,0.8243]
[1750445106081,5.26722201,2426.4,2426.3,0.82424]
[1750445106882,1.7416,2426.5,2426.1,4.9403]
[1750445107185,1.7416,2426.5,2426.3,0.82422]
[1750445107382,1.7416,2426.5,2426.4,0.8242]
[1750445107586,1.7416,2426.5,2426.3,0.82422]
[1750445107884,2.56577,2426.5,2426.3,0.82422]
[1750445108179,3.6073,2426.5,2426.1,1.7325]
[1750445108385,3.6073,2426.5,2426.3,0.82423]
[1750445109088,3.6073,2426.5,2426.2,0.82425]
[1750445109292,10.11078587,2426.4,2426.1,1.7325]
[1750445109491,11.97648587,2426.4,2426.2,0.82425]
[1750445109698,11.97648587,2426.4,2425.8,3.2078]
[1750445109889,10.11078587,2426.1,2425.8,3.2078]
[1750445110087,10.11078587,2426.1,2426.0,0.82434]
[1750445110286,1.8657,2426.4,2426.3,0.82424]
[1750445110590,11.97648587,2426.4,2426.2,0.82426]
[1750445110989,11.97648587,2426.4,2426.3,0.82424]
[1750445111186,11.97648587,2426.4,2426.2,0.82425]
[1750445111592,11.97648587,2426.4,2426.3,0.82424]
[1750445112990,12.80068587,2426.4,2426.2,0.82425]
[1750445113292,12.80068587,2426.4,2426.2,0.82426]
[1750445113795,0.82425,2426.3,2426.1,0.82428]
[1750445113993,1.7342,2426.3,2426.2,0.82427]
[1750445114189,1.7342,2426.3,2426.1,0.82429]
[1750445114493,2.55844,2426.3,2426.0,0.82432]
[1750445115095,1.7342,2426.3,2425.8,3.2078]
[1750445115294,1.7342,2426.3,2426.1,0.8243]
[1750445115685,2.55844,2426.3,2426.1,0.8243]
[1750445115886,1.7342,2426.3,2425.9,2.06093]
[1750445116190,2.55844,2426.3,2426.1,0.82428]
[1750445116585,0.82427,2426.2,2426.0,0.82432]
[1750445117200,36.68578587,2426.1,2425.8,3.2078]
[1750445117490,1.7166,2426.0,2425.9,0.82437]
[1750445118090,36.68578587,2426.1,2426.0,0.82434]
[1750445118799,13.31858587,2426.4,2426.2,0.82427]
[1750445119095,27.39424,2426.3,2426.1,0.82429]
[1750445119293,26.57,2426.3,2426.1,0.82428]
[1750445119499,27.39425,2426.3,2426.1,0.82428]
[1750445119802,29.11085,2426.3,2426.1,0.82428]
[1750445120594,28.2866,2426.3,2426.2,0.82427]
[1750445120789,29.11084,2426.3,2426.1,0.82428]
[1750445121189,29.11084,2426.3,2426.2,0.82427]
[1750445121391,29.11084,2426.3,2426.1,0.82428]
[1750445122100,28.2866,2426.3,2425.8,3.2078]
[1750445122397,10.11078587,2426.1,2426.0,0.82433]
[1750445123196,10.93508587,2426.1,2426.0,0.82434]
[1750445123398,11.82518587,2426.1,2426.0,0.82434]
[1750445123593,1.7144,2426.1,2426.0,0.82434]
[1750445123802,26.57,2426.3,2426.2,0.82427]
[1750445123987,26.57,2426.3,2426.1,0.82428]
[1750445123988,27.39425,2426.3,2426.1,0.82428]
[1750445124287,3.2078,2426.7,2426.3,0.82424]
[1750445124491,3.2078,2426.7,2426.0,2.06085]
[1750445124492,3.2078,2427.2,2426.6,3.2078]
[1750445124704,3.5468,2427.4,2426.9,3.2078]
[1750445124892,4.37068,2427.4,2426.9,3.2078]
[1750445125094,6.17867,2427.4,2427.1,0.82395]
[1750445125295,5.3548,2427.4,2427.2,0.82392]
[1750445125690,5.3548,2427.4,2426.9,5.0035]
[1750445126096,5.3548,2427.4,2427.3,0.8239]
[1750445126304,5.3548,2427.4,2427.2,0.82391]
[1750445126692,6.17866,2427.4,2427.2,0.82391]
[1750445126898,5.3548,2427.4,2427.2,0.82391]
[1750445127404,5.3548,2427.4,2427.3,0.8239]
[1750445127603,6.1787,2427.4,2427.1,0.82395]
[1750445127803,0.8239,2427.3,2427.0,0.82398]
[1750445128011,2.5669,2427.3,2427.0,0.82398]
[1750445128200,1.743,2427.3,2427.1,0.82396]
[1750445128505,36.65878587,2427.8,2427.4,0.82384]
[1750445128808,6.14266,2427.7,2427.3,0.82387]
[1750445129105,5.3189,2427.7,2427.2,3.2078]
[1750445129405,6.14267,2427.7,2427.2,3.2078]
[1750445129607,27.3688,2427.6,2427.3,0.82388]
[1750445129809,28.3266,2427.6,2427.3,0.82388]
[1750445130410,28.3266,2427.6,2427.2,4.03172]
[1750445130709,39.26120587,2427.6,2427.2,4.03172]
[1750445130900,38.43738587,2427.6,2427.4,0.82385]
[1750445131104,3.5759,2427.7,2427.2,3.2078]
[1750445131404,26.538,2427.6,2427.4,0.82384]
[1750445131706,26.538,2427.6,2427.2,3.2078]
[1750445131906,26.538,2427.6,2427.5,0.82383]
[1750445132409,26.538,2427.6,2427.2,3.2078]
[1750445132610,1.8321,2427.5,2427.3,0.82388]
[1750445133307,1.8321,2427.5,2427.4,0.82386]
[1750445133609,1.8321,2427.5,2427.3,0.82387]
[1750445134108,1.8321,2427.5,2427.4,0.82386]
[1750445134402,1.8321,2427.5,2427.3,0.82387]
[1750445134604,26.538,2427.6,2427.5,0.82383]
[1750445134804,26.538,2427.6,2427.4,0.82383]
[1750445135209,3.5759,2427.7,2427.2,5.071]
[1750445135404,26.531,2427.6,2427.5,0.82383]
[1750445135701,26.531,2427.6,2427.5,0.89316781]
[1750445135902,3.5759,2427.7,2427.6,0.82379]
[1750445136114,2.53018,2428.0,2427.8,0.82372]
[1750445136312,26.526,2427.9,2427.8,0.82372]
[1750445136502,5.3637,2428.0,2427.9,0.82369]
[1750445136704,31.8867,2428.0,2427.9,0.82369]
[1750445137405,30.1802,2428.0,2427.9,0.82369]
[1750445137804,3.6572,2428.0,2427.9,0.82369]
[1750445138003,30.1782,2428.0,2427.9,0.82369]
[1750445138202,3.6572,2428.0,2427.9,0.82369]
[1750445138609,30.1762,2428.0,2427.9,0.82369]
[1750445139107,3.2078,2428.5,2427.9,3.2078]
[1750445139298,10.11078587,2428.2,2427.9,3.2078]
[1750445139499,28.2317,2428.1,2427.6,3.2078]
[1750445139714,10.11078587,2427.8,2427.6,3.2078]
[1750445139907,10.11078587,2427.8,2427.6,4.03158]
[1750445140203,10.11078587,2427.8,2427.6,3.2078]
[1750445140409,10.11078587,2427.8,2427.6,4.03157]
[1750445140610,10.11078587,2427.8,2427.7,0.82376]
[1750445140817,12.64822587,2427.8,2427.5,0.89313781]
[1750445141107,38.33748587,2427.8,2427.5,0.06933781]
[1750445141304,4.03159,2427.6,2427.5,0.06933781]
[1750445141712,9.995,2427.6,2427.1,0.82394]
[1750445141906,9.995,2427.6,2426.7,7.07841]
[1750445141907,2.64635,2427.5,2427.2,0.82393]
[1750445142105,30.94355,2427.5,2427.2,0.82393]
[1750445142410,30.1197,2427.5,2427.3,0.8239]
[1750445142613,30.94353,2427.5,2427.2,0.82391]
[1750445142804,30.94353,2427.5,2427.3,0.82389]
[1750445143112,30.1197,2427.5,2427.3,0.82389]
[1750445143412,30.94353,2427.5,2427.2,0.82391]
[1750445144109,30.1197,2427.5,2427.2,0.82391]
[1750445144310,30.94353,2427.5,2427.2,0.82391]
[1750445146107,30.1197,2427.5,2426.9,2.06007]
[1750445146413,30.94355,2427.5,2427.2,0.82392]
[1750445146614,0.82387,2427.4,2427.1,0.82395]
[1750445146814,3.5837,2427.3,2427.1,0.82395]
[1750445147110,4.40761,2427.3,2427.1,0.82396]
[1750445147410,3.5837,2427.3,2427.1,0.82396]
[1750445147611,4.40761,2427.3,2427.0,0.82398]
[1750445147812,3.5837,2427.3,2426.8,7.065]
[1750445148008,4.40761,2427.3,2427.0,0.82397]
[1750445148208,3.5837,2427.3,2427.1,0.82395]
[1750445149011,3.5837,2427.3,2427.2,0.82393]
[1750445149321,30.0827,2427.3,2426.8,10.87166]
[1750445149617,30.0827,2427.3,2427.2,0.82393]
[1750445150209,28.3145,2427.3,2427.2,0.82393]
[1750445150406,1.8225,2427.5,2427.4,0.82386]
[1750445150609,1.6865,2427.8,2427.7,0.82376]
[1750445150610,7.065,2427.8,2427.7,0.82376]
[1750445150811,33.559,2427.8,2427.6,0.82377]
[1750445151113,1.7277,2427.8,2427.7,0.82376]
[1750445151311,4.9179,2428.0,2427.9,0.82369]
[1750445152820,6.6456,2428.0,2427.9,0.82369]
[1750445153111,6.6456,2428.0,2427.4,5.26742]
[1750445153313,10.11078587,2427.8,2427.6,0.82377]
[1750445153614,1.7277,2427.7,2427.6,0.82377]
[1750445154518,15.85234587,2428.0,2427.8,0.82371]
[1750445154720,6.6619,2428.0,2427.9,0.82369]
[1750445154912,34.39545542,2428.0,2427.9,0.82369]
[1750445155218,33.1469,2428.0,2427.9,0.82369]
[1750445155617,33.1439,2428.0,2427.9,0.82369]
[1750445155914,5.66030033,2428.6,2427.9,8.2078]
[1750445156118,1.24825021,2428.5,2428.4,0.8235]
[1750445156410,2.07175021,2428.5,2428.0,5.61705]
[1750445156604,5.3929,2428.4,2428.3,0.82354]
[1750445157612,5.3929,2428.4,2428.0,1.7433]
[1750445157810,5.3929,2428.4,2428.3,0.82356]
[1750445158210,3.2078,2428.6,2428.5,0.82349]
[1750445158413,29.6828,2428.6,2428.5,0.82349]
[1750445158710,3.2078,2428.6,2428.5,0.82349]
[1750445158905,5.0368,2428.6,2428.5,0.82349]
[1750445159110,3.5432,2428.7,2428.6,0.82346]
[1750445159513,3.5432,2428.7,2428.6,4.03126]
[1750445159713,1.6894,2428.7,2428.6,4.03126]
[1750445160310,26.469,2428.9,2428.8,0.82339]
[1750445161912,1.8538,2429.0,2428.9,0.82336]
[1750445162113,28.3218,2429.0,2428.9,0.82336]
[1750445162419,1.8538,2429.0,2428.9,0.82336]
[1750445162925,28.3178,2429.0,2428.9,0.82336]
[1750445163119,1.8538,2429.0,2428.9,0.82336]
[1750445163417,28.141,2429.2,2429.1,0.82329]
[1750445163820,28.138,2429.2,2429.1,0.82329]
[1750445164419,3.5087,2429.5,2428.9,5.26618]
[1750445164626,3.5087,2429.5,2429.4,0.82319]
[1750445164921,10.40821838,2429.7,2429.3,3.2078]
[1750445165115,13.61601838,2429.7,2429.5,0.82314]
[1750445165323,1.679,2429.6,2429.5,0.82315]
[1750445166210,10.11078587,2429.7,2429.6,0.82312]
[1750445166414,28.2089,2429.8,2429.7,0.82308]
[1750445166623,1.7529,2429.8,2429.7,0.82308]
[1750445168615,1.7558,2429.9,2429.8,0.82305]
[1750445169515,3.5034,2429.9,2429.7,0.82306]
[1750445169714,3.5034,2429.9,2429.8,0.82305]
[1750445170215,1.7558,2429.9,2429.8,0.82305]
[1750445170926,5.0614,2430.1,2429.9,0.82299]
[1750445171326,1.7476,2430.0,2429.9,0.82299]
[1750445171827,1.7476,2430.0,2429.8,0.82302]
[1750445172018,2.5706,2430.0,2429.8,0.82304]
[1750445172215,36.54478587,2429.9,2429.5,1.729]
[1750445172418,10.11078587,2429.6,2429.3,10.2398]
[1750445172626,0.82319,2429.4,2429.3,3.2078]
[1750445172825,2.05806,2429.3,2428.7,1.6894]
[1750445173025,13.31858587,2428.8,2428.3,5.26667]
[1750445173326,1.6884,2428.7,2428.3,3.2078]
[1750445173519,2.51183,2428.7,2428.5,0.82347]
[1750445173724,0.82347,2428.6,2428.4,0.82351]
[1750445174030,0.82347,2428.6,2428.2,0.82356]
[1750445174031,40.57008587,2428.5,2428.2,0.82356]
[1750445174229,2.51193,2428.4,2428.2,0.82356]
[1750445174421,1.6884,2428.4,2428.2,0.82356]
[1750445174726,1.6884,2428.4,2428.3,0.82356]
[1750445175029,1.6884,2428.4,2427.7,11.9292]
[1750445175030,0.82359,2428.3,2427.7,11.9292]
[1750445175221,28.1073,2428.2,2427.7,11.9292]
[1750445175422,28.1073,2428.2,2428.0,0.82365]
[1750445175623,10.11078587,2428.1,2427.8,0.82371]
[1750445175923,3.2078,2428.2,2427.7,10.2398]
[1750445176123,3.2078,2428.2,2427.7,12.29914]
[1750445176323,3.2078,2428.2,2428.1,0.82363]
[1750445176524,4.8901,2428.2,2428.1,0.82363]
[1750445178721,3.2078,2428.7,2428.1,3.2078]
[1750445179031,26.425,2428.7,2428.2,0.82357]
[1750445179229,2.51337,2428.6,2428.2,0.82357]
[1750445179429,2.51337,2428.6,2428.3,0.82356]
[1750445179737,1.6899,2428.6,2428.3,0.82356]
[1750445179924,2.51336,2428.6,2428.1,3.2078]
[1750445180120,1.6899,2428.6,2428.3,0.82355]
[1750445180430,0.82353,2428.4,2428.1,4.03141]
[1750445180633,1.6899,2428.3,2428.1,4.03141]
[1750445180830,1.6899,2428.3,2428.2,0.82359]
[1750445184829,38.26318587,2428.5,2428.4,0.82353]
[1750445185037,28.1524,2428.5,2428.4,0.82353]
[1750445185829,4.03123,2428.7,2428.5,0.82349]
[1750445186034,0.82347,2428.6,2428.1,5.33619781]
[1750445186236,1.7259,2428.5,2428.4,0.82352]
[1750445186528,0.82353,2428.4,2428.1,3.27713781]
[1750445186733,12.66020587,2428.5,2428.3,0.82356]
[1750445186932,0.82353,2428.4,2428.2,0.82357]
[1750445187236,2.53653,2428.4,2428.3,0.82356]
[1750445187437,1.713,2428.4,2428.3,0.82356]
[1750445188039,2.53654,2428.4,2428.2,0.82357]
[1750445188230,2.53654,2428.4,2428.3,0.82356]
[1750445188535,1.713,2428.4,2428.3,0.82356]
[1750445190440,2.53654,2428.4,2428.2,0.82358]
[1750445190641,0.82357,2428.3,2428.1,4.10073781]
[1750445190835,2.53655,2428.4,2428.2,0.82359]
[1750445191139,1.713,2428.4,2428.3,0.82356]
[1750445192142,0.82369,2427.9,2427.8,3.2078]
[1750445192437,37.34047587,2427.9,2427.8,3.2078]
[1750445193829,37.34047587,2427.9,2427.8,4.03153]
[1750445194235,37.34047587,2427.9,2427.8,3.2078]
[1750445194434,37.34047587,2427.9,2427.8,3.27713781]
[1750445194635,37.34047587,2427.9,2427.8,4.10086781]
[1750445195037,1.7502,2428.3,2428.2,0.82359]
[1750445195338,0.82359,2428.2,2428.1,3.2078]
[1750445195541,0.82359,2428.2,2428.0,0.82365]
[1750445195542,0.82366,2428.1,2428.0,0.82365]
[1750445195741,10.11078587,2428.2,2428.1,0.82363]
[1750445196042,26.401,2428.2,2428.1,0.82363]
[1750445196540,27.22459,2428.2,2428.1,0.82363]
[1750445197048,0.82363,2428.1,2428.0,0.82366]
[1750445197344,0.82363,2428.1,2427.9,2.61897]
[1750445197544,0.82363,2428.1,2428.0,0.82366]
[1750445197745,0.82363,2428.1,2427.9,2.61897]
[1750445197944,0.82363,2428.1,2428.0,0.82366]
[1750445198345,0.82363,2428.1,2427.9,2.61897]
[1750445198547,27.22462,2428.2,2427.9,1.7953]
[1750445198844,26.401,2428.2,2427.9,2.61897]
[1750445199042,0.82366,2428.0,2427.9,1.7953]
[1750445199543,0.82366,2428.0,2427.9,2.61899]
[1750445199754,0.82369,2427.9,2427.8,3.27713781]
[1750445200444,10.93446587,2428.0,2427.8,3.27713781]
[1750445200645,26.396,2428.0,2427.9,0.82367]
[1750445201043,27.21966,2428.0,2427.9,0.82367]
[1750445201245,27.21966,2428.0,2427.8,4.10083781]
[1750445202151,26.396,2428.0,2427.9,0.82369]
[1750445202352,27.21967,2428.0,2427.8,4.10083781]
[1750445202652,26.396,2428.0,2427.9,0.82369]
[1750445202844,26.391,2428.0,2427.9,0.82369]
[1750445203045,27.21466,2428.0,2427.8,4.10083781]
[1750445203353,3.5441,2428.3,2428.1,0.82363]
[1750445203546,26.391,2428.2,2427.8,3.27713781]
[1750445203747,27.2146,2428.2,2428.0,0.82366]
[1750445203946,26.391,2428.2,2428.0,0.82366]
[1750445204454,27.21459,2428.2,2428.0,0.82366]
[1750445204652,26.391,2428.2,2428.0,0.82366]
[1750445204947,27.2146,2428.2,2428.0,0.82366]
[1750445205142,26.391,2428.2,2428.1,0.82363]
[1750445205544,26.391,2428.2,2427.9,0.82368]
[1750445205545,0.82365,2428.1,2427.9,0.82368]
[1750445205744,2.64255,2428.1,2427.9,0.82368]
[1750445206149,1.8189,2428.1,2427.8,3.27713781]
[1750445206348,10.11078587,2427.9,2427.8,3.27713781]
[1750445206549,37.32047587,2427.9,2427.8,0.06933781]
[1750445206750,42.74840319,2427.9,2427.4,3.2078]
[1750445206950,4.74761732,2427.8,2427.5,3.2078]
[1750445207148,28.0611,2427.8,2427.7,4.03156]
[1750445207351,1.7502,2428.3,2427.7,3.2078]
[1750445207647,27.63349615,2428.2,2428.0,0.82364]
[1750445207847,28.2019,2428.2,2428.1,0.82363]
[1750445208044,29.45134992,2428.2,2428.0,0.82364]
[1750445208348,29.0245,2428.2,2427.9,0.82367]
[1750445208550,0.82363,2428.1,2427.9,0.82367]
[1750445208748,28.2009,2428.2,2428.1,0.82363]
[1750445209055,30.27489353,2428.2,2428.0,0.82364]
[1750445209249,28.2009,2428.2,2427.8,1.74853781]
[1750445209451,0.82368,2428.0,2427.8,2.57224781]
[1750445209755,26.381,2427.9,2427.7,3.2078]
[1750445209953,28.1702,2427.9,2427.8,0.82373]
[1750445210848,29.8913,2427.9,2427.8,0.82373]
[1750445211054,28.1692,2427.9,2427.8,0.82373]
[1750445211353,26.38,2427.9,2427.8,0.82373]
[1750445212357,22.94237587,2428.2,2428.0,0.82363]
[1750445212555,26.377,2428.1,2427.9,0.82367]
[1750445213048,28.94083,2428.1,2427.8,0.82371]
[1750445213257,28.94083,2428.1,2427.9,0.82369]
[1750445213449,26.376,2428.0,2427.9,0.82369]
[1750445213651,4.997,2428.2,2428.1,0.82363]
[1750445213850,29.41525641,2428.2,2428.1,0.82363]
[1750445214252,29.41525641,2428.2,2428.0,0.82364]
[1750445214456,28.1642,2428.2,2428.0,0.82364]
[1750445214655,1.7892,2428.2,2428.0,0.82364]
[1750445214858,27.19665,2428.1,2427.8,0.82371]
[1750445215062,28.89735,2428.1,2427.8,0.82371]
[1750445215656,0.82366,2428.0,2427.8,0.82371]
[1750445215955,0.82373,2427.8,2427.7,5.03503781]
[1750445216263,28.44726207,2427.8,2427.7,3.27713781]
[1750445216457,30.14796207,2427.8,2427.7,3.27713781]
[1750445216856,3.77596207,2427.8,2427.7,3.27713781]
[1750445217056,1.25153207,2427.8,2427.7,3.27713781]
[1750445217261,37.30344587,2428.1,2427.7,3.27713781]
[1750445217561,2.98776705,2428.0,2427.9,0.82369]
[1750445217953,2.98776705,2428.0,2427.7,3.27713781]
[1750445218154,1.7337,2428.0,2427.9,0.82369]
[1750445218361,2.98791319,2428.0,2427.9,0.82369]
[1750445218656,29.35591319,2428.0,2427.9,0.82369]
[1750445219565,1.25421319,2428.0,2427.9,0.82369]
[1750445219862,28.1162,2428.3,2428.1,0.82361]
[1750445220064,1.25449939,2428.2,2428.1,0.82361]
[1750445220559,1.25449939,2428.2,2428.1,4.03143]
[1750445221560,27.61749939,2428.2,2428.1,4.03143]
[1750445222464,30.17498939,2428.2,2428.1,3.2078]
[1750445222663,29.35139939,2428.2,2428.1,4.03143]
[1750445225962,2.46385016,2429.1,2428.1,25.37492368]
[1750445226159,2.46385016,2429.2,2428.9,3.2078]
[1750445226362,1.7167,2429.2,2429.0,0.82329]
[1750445226562,1.7167,2429.2,2429.1,0.82329]
[1750445226759,3.411,2429.4,2429.3,0.82322]
[1750445226959,9.45085016,2430.0,2429.6,0.8231]
[1750445227158,5.1389,2429.9,2429.8,3.2078]
[1750445227468,5.1389,2429.9,2429.8,4.03085]
[1750445228266,1.6894,2429.9,2429.8,4.03085]
[1750445228766,28.1367,2430.1,2430.0,0.82298]
[1750445228967,1.7847,2430.1,2430.0,0.82298]
[1750445229167,28.109,2430.2,2429.8,3.2078]
[1750445229470,28.109,2430.2,2430.0,0.82296]
[1750445229770,1.7141,2430.1,2430.0,0.82296]
[1750445230760,0.82302,2429.9,2429.8,3.2078]
[1750445230967,28.40261,2429.9,2429.5,3.2078]
[1750445231161,10.11078587,2429.6,2429.2,3.2078]
[1750445231364,10.11078587,2429.3,2428.8,4.9065]
[1750445231563,1.7141,2429.2,2429.0,0.8233]
[1750445231967,1.7141,2429.2,2428.8,4.9065]
[1750445232166,1.7141,2429.2,2428.9,0.82336]
[1750445232355,1.7141,2429.2,2429.0,0.82332]
[1750445232556,1.7141,2429.2,2428.9,0.82333]
[1750445232760,1.7141,2429.2,2429.0,0.82331]
[1750445232961,1.7141,2429.2,2428.8,4.9065]
[1750445233266,1.7141,2429.2,2429.0,0.8233]
[1750445234170,1.7141,2429.2,2428.9,0.82333]
[1750445234670,1.7141,2429.2,2429.0,0.82332]
[1750445235268,2.53736,2429.2,2428.9,0.82333]
[1750445235467,1.7141,2429.2,2429.0,0.82332]
[1750445235967,10.11078587,2429.1,2428.8,3.2078]
[1750445236168,2.48375,2429.0,2428.8,3.2078]
[1750445236362,1.8014,2428.9,2428.8,4.03119]
[1750445236561,0.82326,2429.2,2428.9,0.82335]
[1750445236769,26.337,2429.1,2429.0,0.8233]
[1750445236962,0.82329,2429.1,2429.0,3.2078]
[1750445237161,2.48369,2429.1,2429.0,3.2078]
[1750445237365,28.1384,2429.3,2429.1,0.82328]
[1750445237570,30.62203,2429.3,2429.1,0.82328]
[1750445238170,29.7988,2429.3,2429.2,0.82325]
[1750445238374,30.62202,2429.3,2429.1,0.82327]
[1750445238975,29.7988,2429.3,2429.1,0.82327]
[1750445239173,30.62202,2429.3,2429.1,0.82327]
[1750445239478,0.82328,2429.2,2429.0,3.2078]
[1750445239675,0.82329,2429.1,2429.0,3.2078]
[1750445239869,0.82328,2429.2,2429.0,4.03112]
[1750445240070,1.6573,2429.2,2429.1,0.82329]
[1750445240271,2.48055,2429.2,2429.0,4.0311]
[1750445240471,1.6573,2429.2,2429.1,0.82329]
[1750445241076,1.8014,2429.3,2429.2,0.82325]
[1750445241573,1.7951,2429.5,2429.4,0.82319]
[1750445241776,2.61825,2429.5,2429.3,4.031]
[1750445241972,28.95025,2429.5,2429.3,4.031]
[1750445242173,28.95025,2429.5,2429.3,3.2078]
[1750445242373,4.45016,2429.5,2429.3,4.03102]
[1750445242576,3.627,2429.5,2429.4,0.82319]
[1750445242770,3.627,2429.5,2429.3,3.2078]
[1750445242976,0.82319,2429.4,2429.3,3.2078]
[1750445243173,2.65509,2429.4,2429.3,3.2078]
[1750445244374,1.6867,2429.7,2429.3,3.2078]
[1750445244575,0.82319,2429.4,2429.3,4.03101]
[1750445244984,0.82319,2429.4,2429.3,3.2078]
[1750445245184,0.82319,2429.4,2429.3,4.03102]
[1750445246190,0.82319,2429.4,2429.3,3.2078]
[1750445246689,0.82329,2429.1,2429.0,0.06933781]
[1750445246887,0.82342,2428.7,2428.6,3.2078]
[1750445247091,0.82355,2428.4,2428.3,4.03136]
[1750445247291,0.82355,2428.4,2428.3,3.2078]
[1750445247491,0.82355,2428.4,2428.3,4.03136]
[1750445247892,0.82355,2428.4,2428.3,3.2078]
[1750445248088,10.93433587,2428.4,2428.3,3.2078]
[1750445248489,17.91833587,2428.4,2428.3,3.2078]
[1750445248682,5.58976,2428.6,2428.3,3.2078]
[1750445248683,0.82348,2428.6,2428.3,3.2078]
[1750445248884,31.2332,2428.9,2428.7,0.82342]
[1750445249085,31.2332,2428.9,2428.4,3.79897]
[1750445249295,0.82342,2428.8,2428.7,0.82342]
[1750445249487,0.82343,2428.7,2428.6,0.82343]
[1750445249883,0.82343,2428.7,2428.5,0.82347]
[1750445250087,0.82341,2428.8,2428.4,1.6776]
[1750445250486,0.82341,2428.8,2428.5,0.82348]
[1750445250689,0.82343,2428.7,2428.4,4.24131]
[1750445251194,31.2332,2428.9,2428.5,0.82349]
[1750445251400,0.82341,2428.8,2428.4,3.4178]
[1750445251593,0.82341,2428.8,2428.5,0.82346]
[1750445252094,3.2078,2428.9,2428.5,0.82346]
[1750445252292,0.82342,2428.7,2428.6,0.06933781]
[1750445253403,0.82342,2428.7,2428.5,0.82349]
[1750445253404,0.82341,2428.8,2428.5,0.82347]
[1750445253901,0.8233,2429.1,2428.8,0.82336]
[1750445254196,0.8233,2429.1,2428.9,3.2078]
[1750445254498,0.82327,2429.2,2428.9,4.03113]
[1750445254793,29.74,2429.3,2428.9,3.2078]
[1750445255000,0.8233,2429.1,2428.9,3.2078]
[1750445255299,2.58256,2429.2,2428.9,4.03113]
[1750445255491,0.82329,2429.1,2428.9,4.03114]
[1750445255799,0.82327,2429.2,2429.0,0.82332]
[1750445256298,28.80193,2429.3,2429.1,0.82328]
[1750445256500,30.56123,2429.3,2429.1,0.82328]
[1750445256700,0.82325,2429.2,2428.9,4.03113]
[1750445256998,2.58257,2429.2,2428.9,4.03113]
[1750445257197,0.82332,2429.1,2428.9,4.03115]
[1750445257401,1.7229,2429.1,2429.0,0.82332]
[1750445259101,26.322,2429.2,2429.0,0.8233]
[1750445259398,27.14526,2429.2,2429.0,0.82332]
[1750445259594,1.7229,2429.1,2429.0,0.82332]
[1750445259992,2.54619,2429.1,2429.0,0.82332]
[1750445260207,1.7229,2429.1,2429.0,0.82332]
[1750445261400,11.83368587,2429.1,2428.9,3.2078]